bitfinex-derivatives/quotes_SOLF0:USTF0_20251108
["timestamp","ask_amount","ask_price","bid_price","bid_amount"]
[1762620563502,2.94,156.94,156.88,5.7387]
[1762620564401,2.98892791,156.93,156.89,3.25673088]
[1762620564599,2.98566058,156.93,156.89,0.04673088]
[1762620565007,2.94,156.9,156.89,0.04673088]
[1762620565807,8.679,156.88,156.82,3.21]
[1762620566504,2.94,156.86,156.82,8.9509]
[1762620566702,2.98861142,156.86,156.82,8.99653271]
[1762620567010,0.04861142,156.86,156.83,3.21]
[1762620567411,2.98861142,156.86,156.82,0.04563271]
[1762620568311,2.94,156.85,156.82,0.04563271]
[1762620568511,0.04861142,156.86,156.82,3.25563271]
[1762620569311,0.04861142,156.86,156.84,3.21]
[1762620570719,2.98861142,156.86,156.82,0.04563271]
[1762620572208,3.18,156.83,156.82,0.04563271]
[1762620572615,3.18,156.83,156.74,51.66]
[1762620572616,3.18,156.83,156.74,54.77]
[1762620572913,8.9212,156.82,156.76,5.7431]
[1762620573118,3.18,156.82,156.74,54.77]
[1762620573320,3.18,156.82,156.75,3.11]
[1762620573721,9.27275457,156.86,156.77,0.04521632]
[1762620573722,0.0421422,156.8,156.77,0.04521632]
[1762620573912,0.0421422,156.8,156.77,3.15521632]
[1762620574113,0.0421422,156.8,156.77,0.04521632]
[1762620574114,3.2221422,156.8,156.77,0.04521632]
[1762620577224,0.0421422,156.8,156.77,3.15521632]
[1762620577527,0.0421422,156.8,156.78,3.11]
[1762620578934,0.0421422,156.8,156.77,0.04521632]
[1762620578935,3.2221422,156.8,156.77,0.04521632]
[1762620579835,8.9640422,156.8,156.77,0.04521632]
[1762620580023,0.0421422,156.8,156.77,3.15521632]
[1762620580430,0.0421422,156.8,156.79,3.11]
[1762620581429,3.18,156.88,156.8,3.11]
[1762620582235,8.9189,156.88,156.82,5.7409]
[1762620582433,0.0449018,156.86,156.83,3.11]
[1762620582822,0.0449018,156.86,156.83,8.8505]
[1762620583230,0.0449018,156.86,156.83,3.11]
[1762620585343,3.1649018,156.86,156.82,0.04062799]
[1762620585834,5.74,156.85,156.82,0.04062799]
[1762620586040,3.12,156.84,156.82,0.04062799]
[1762620586937,3.12,156.83,156.82,0.04062799]
[1762620587142,3.12,156.83,156.76,2.92]
[1762620587840,3.12,156.82,156.76,8.6632]
[1762620588236,3.12,156.8,156.77,0.04118454]
[1762620588540,3.16831312,156.8,156.77,0.0446625]
[1762620589641,3.12,156.78,156.77,0.0446625]
[1762620589843,3.12,156.78,156.69,22.6]
[1762620590042,3.12,156.76,156.68,2.92]
[1762620590239,8.8637,156.75,156.68,2.92]
[1762620590441,3.12,156.74,156.64,2.92]
[1762620590838,3.16514557,156.71,156.67,0.04602513]
[1762620591142,3.16514557,156.71,156.67,0.04302838]
[1762620591347,0.04514557,156.71,156.67,2.96302838]
[1762620592344,0.04514557,156.71,156.69,2.92]
[1762620593449,0.04514557,156.71,156.68,5.7459]
[1762620593643,0.04514557,156.71,156.67,0.04302838]
[1762620593644,3.16514557,156.71,156.67,0.04302838]
[1762620594348,3.16514557,156.71,156.67,2.96302838]
[1762620594647,3.16514557,156.71,156.67,8.70932838]
[1762620594845,0.04514557,156.71,156.68,2.92]
[1762620595845,3.16514557,156.71,156.67,0.04302838]
[1762620596548,3.12,156.69,156.67,0.04302838]
[1762620600353,8.8659,156.69,156.67,0.04302838]
[1762620600649,3.16514557,156.71,156.67,0.04302838]
[1762620600947,3.16514557,156.71,156.68,5.746]
[1762620601158,3.16514557,156.71,156.67,2.96302838]
[1762620601346,0.04514557,156.71,156.67,2.96302838]
[1762620601546,0.04514557,156.71,156.68,3.21]
[1762620601747,3.08514557,156.71,156.67,0.04302838]
[1762620602251,0.04514557,156.71,156.67,3.25302838]
[1762620602940,0.04514557,156.71,156.68,8.956]
[1762620603942,0.04514557,156.71,156.68,3.21]
[1762620605056,0.04514557,156.71,156.69,8.9557]
[1762620605257,0.04514557,156.71,156.7,3.21]
[1762620605457,0.04514557,156.71,156.67,3.25302838]
[1762620607556,0.04514557,156.71,156.7,3.21]
[1762620610355,0.04514557,156.71,156.69,8.9557]
[1762620610550,0.04514557,156.71,156.69,3.21]
[1762620610756,0.04514557,156.71,156.67,3.25302838]
[1762620612062,0.04514557,156.71,156.69,8.9556]
[1762620613661,0.04514557,156.71,156.69,3.21]
[1762620614955,0.04514557,156.71,156.67,3.25302838]
[1762620615457,0.04514557,156.71,156.69,3.21]
[1762620616957,0.04514557,156.71,156.67,3.25302838]
[1762620617359,0.04514557,156.71,156.7,3.21]
[1762620618165,0.04514557,156.71,156.69,5.7456]
[1762620619252,0.04514557,156.71,156.69,8.9556]
[1762620620667,0.04514557,156.71,156.69,3.21]
[1762620621557,3.08514557,156.71,156.67,3.25302838]
[1762620622366,8.83024557,156.71,156.67,8.99942838]
[1762620622763,3.08514557,156.71,156.67,8.99942838]
[1762620623663,3.08514557,156.71,156.68,3.21]
[1762620623664,0.04514557,156.71,156.68,3.21]
[1762620624761,3.08514557,156.71,156.67,5.78932838]
[1762620624966,3.08514557,156.71,156.67,0.04302838]
[1762620625167,3.08514557,156.71,156.67,3.25302838]
[1762620625373,3.08514557,156.71,156.68,3.21]
[1762620625565,0.04514557,156.71,156.68,3.21]
[1762620627068,3.04,156.7,156.67,0.04302838]
[1762620629075,3.04,156.68,156.61,3.21]
[1762620629869,3.04,156.68,156.63,0.04336202]
[1762620629870,0.04151317,156.66,156.63,0.04336202]
[1762620630076,3.08151317,156.66,156.63,0.04336202]
[1762620630969,3.04,156.65,156.63,0.04336202]
[1762620631275,3.04,156.65,156.57,3.21]
[1762620631469,8.7681,156.63,156.57,3.21]
[1762620631669,3.02,156.62,156.57,3.21]
[1762620632270,0.04138904,156.61,156.58,3.22322465]
[1762620633380,0.04138904,156.61,156.6,3.18]
[1762620634580,3.06138904,156.61,156.58,0.04322465]
[1762620636884,0.04138904,156.61,156.58,3.22322465]
[1762620637381,0.04138904,156.61,156.58,8.97292465]
[1762620637681,0.04138904,156.61,156.59,3.18]
[1762620638184,0.04138904,156.61,156.6,3.18]
[1762620641883,0.04138904,156.61,156.59,5.7493]
[1762620642081,3.06138904,156.61,156.59,5.7493]
[1762620643079,0.04138904,156.61,156.59,5.7493]
[1762620644981,3.05138904,156.61,156.58,0.04322465]
[1762620648792,3.01,156.6,156.58,0.04322465]
[1762620650084,3.01,156.59,156.58,0.04322465]
[1762620652790,3.01,156.57,156.52,5.7519]
[1762620653093,3.01,156.57,156.49,2.95]
[1762620653285,3.01,156.53,156.49,2.95]
[1762620653695,3.05864993,156.53,156.49,2.99293705]
[1762620653896,3.05864993,156.53,156.49,8.74593705]
[1762620654100,3.05864993,156.53,156.49,2.99293705]
[1762620654303,0.04864993,156.53,156.49,2.99293705]
[1762620655002,0.04864993,156.53,156.5,5.7527]
[1762620656506,0.04864993,156.53,156.51,5.7523]
[1762620656905,0.04864993,156.53,156.51,8.7023]
[1762620657211,0.04864993,156.53,156.52,2.95]
[1762620658404,3.01,156.62,156.54,2.95]
[1762620658815,3.01,156.6,156.55,5.7508]
[1762620659109,3.01,156.6,156.54,2.95]
[1762620659309,3.05150356,156.59,156.55,2.99829129]
[1762620659508,3.05525787,156.59,156.55,2.99829129]
[1762620660009,3.05525787,156.59,156.56,5.7503]
[1762620661311,3.05525787,156.59,156.55,0.04829129]
[1762620662004,3.09,156.58,156.55,0.04829129]
[1762620662402,3.09,156.56,156.55,0.04829129]
[1762620662706,3.09,156.55,156.49,2.40437683]
[1762620662911,3.09,156.55,156.48,3.11]
[1762620663510,8.8417,156.53,156.49,5.753]
[1762620663710,3.09,156.52,156.49,0.04170399]
[1762620663901,8.8421,156.52,156.49,0.04170399]
[1762620664098,3.09,156.51,156.45,3.11]
[1762620665108,3.75993551,156.54,156.45,3.11]
[1762620665301,0.04244456,156.5,156.45,3.11]
[1762620665505,0.04244456,156.5,156.47,5.7537]
[1762620665705,3.13244456,156.5,156.45,3.11]
[1762620666909,3.13244456,156.5,156.46,8.8642]
[1762620667110,3.1367295,156.5,156.46,3.11]
[1762620667314,3.1367295,156.5,156.39,3.11]
[1762620667612,0.04097644,156.46,156.44,3.11]
[1762620668514,0.04097644,156.46,156.44,8.8648]
[1762620668710,3.09,156.53,156.45,3.11]
[1762620669016,3.09,156.53,156.48,3.11]
[1762620669207,3.09,156.56,156.48,3.11]
[1762620669613,3.09,156.56,156.51,8.8622]
[1762620669812,0.04290818,156.55,156.52,3.15316931]
[1762620670108,0.04451905,156.55,156.52,3.15583515]
[1762620670315,0.04451905,156.55,156.53,3.11]
[1762620670817,0.04451905,156.55,156.53,8.8613]
[1762620671021,0.04451905,156.55,156.54,3.11]
[1762620671312,0.04451905,156.55,156.53,5.7513]
[1762620671507,0.04451905,156.55,156.52,0.04583515]
[1762620671705,3.13451905,156.55,156.52,0.04583515]
[1762620672105,0.04451905,156.55,156.52,8.90763515]
[1762620672514,0.04451905,156.55,156.52,0.04583515]
[1762620672515,3.13451905,156.55,156.52,0.04583515]
[1762620672714,0.04451905,156.55,156.52,3.15583515]
[1762620673704,3.13451905,156.55,156.52,0.04583515]
[1762620674715,0.04451905,156.55,156.52,0.04583515]
[1762620675109,3.13451905,156.55,156.52,0.04583515]
[1762620675505,3.13451905,156.55,156.46,3.11]
[1762620675710,3.09,156.55,156.46,3.11]
[1762620675907,51.75,156.58,156.48,3.11]
[1762620676711,0.04237962,156.55,156.48,3.11]
[1762620677102,0.04237962,156.55,156.52,3.11]
[1762620677307,0.04396874,156.55,156.52,3.11]
[1762620679214,0.04396874,156.55,156.54,3.11]
[1762620679409,0.043205,156.56,156.54,3.11]
[1762620680513,0.043205,156.56,156.46,3.11]
[1762620680819,0.04361015,156.53,156.46,3.11]
[1762620682217,0.04361015,156.53,156.52,8.8618]
[1762620683215,3.09,156.63,156.56,5.7504]
[1762620683410,5.7486,156.62,156.55,3.11]
[1762620683608,3.09,156.62,156.55,3.11]
[1762620683817,4.6667317,156.61,156.55,3.11]
[1762620684015,3.09,156.61,156.55,3.11]
[1762620684218,3.1338086,156.6,156.56,0.04439594]
[1762620684916,3.1338086,156.6,156.56,3.15439594]
[1762620685222,0.0438086,156.6,156.58,3.11]
[1762620685618,0.0438086,156.6,156.58,8.8597]
[1762620685921,0.0438086,156.6,156.59,3.11]
[1762620689615,0.0438086,156.6,156.57,3.11]
[1762620689817,3.1338086,156.6,156.56,0.04439594]
[1762620690419,3.09,156.59,156.56,0.04439594]
[1762620690620,3.1338086,156.6,156.56,3.15439594]
[1762620691221,3.01,156.59,156.56,0.04439594]
[1762620691526,7.68412702,156.58,156.56,0.04439594]
[1762620691731,3.01,156.58,156.56,0.04439594]
[1762620694234,8.7599,156.58,156.56,0.04439594]
[1762620694434,3.01,156.57,156.56,0.04439594]
[1762620698422,3.01,156.57,156.51,5.7523]
[1762620698423,3.01,156.55,156.51,8.7723]
[1762620699236,0.04612228,156.55,156.53,3.02]
[1762620699832,0.04612228,156.55,156.52,3.02]
[1762620700238,7.91182,156.63,156.47,34.08]
[1762620700239,6.76376557,156.63,156.56,5.7503]
[1762620700535,6.76376557,156.63,156.56,8.7703]
[1762620700933,4.66249338,156.62,156.56,8.7703]
[1762620701129,6.76376557,156.63,156.56,8.7703]
[1762620701439,0.04496028,156.61,156.58,3.06387638]
[1762620701640,0.04536628,156.61,156.58,3.06798302]
[1762620701936,3.05536628,156.61,156.58,0.04798302]
[1762620702341,0.04536628,156.61,156.58,8.81758302]
[1762620702543,0.04536628,156.61,156.59,3.02]
[1762620703135,0.04536628,156.61,156.59,8.7693]
[1762620703332,0.04536628,156.61,156.59,3.02]
[1762620706647,0.04536628,156.61,156.6,3.11]
[1762620708751,0.04536628,156.61,156.59,8.8593]
[1762620709248,0.04536628,156.61,156.59,3.11]
[1762620709749,0.04536628,156.61,156.58,0.04798302]
[1762620709950,0.04536628,156.61,156.58,3.15798302]
[1762620711548,0.04536628,156.61,156.58,8.90768302]
[1762620711750,0.04536628,156.61,156.59,3.11]
[1762620712159,0.04536628,156.61,156.58,3.15798302]
[1762620712549,0.04536628,156.61,156.59,5.7493]
[1762620712845,0.04536628,156.61,156.59,3.11]
[1762620713251,3.12536628,156.61,156.58,0.04798302]
[1762620714054,3.12536628,156.61,156.58,3.15798302]
[1762620715253,0.04536628,156.61,156.58,3.15798302]
[1762620715452,3.12536628,156.61,156.58,3.15798302]
[1762620716651,0.04536628,156.61,156.59,3.11]
[1762620717356,0.04536628,156.61,156.6,3.11]
[1762620717661,8.8264,156.68,156.6,3.11]
[1762620717662,3.08,156.68,156.6,3.11]
[1762620717858,3.08,156.66,156.6,3.11]
[1762620718462,0.04705633,156.65,156.61,0.04077275]
[1762620718762,3.12705633,156.65,156.61,0.04077275]
[1762620719158,3.12705633,156.65,156.61,3.15077275]
[1762620719361,8.87435633,156.65,156.61,3.15077275]
[1762620719556,11.49773195,156.64,156.61,0.04077275]
[1762620719762,3.08,156.63,156.61,0.04077275]
[1762620722065,3.17,156.62,156.61,0.04077275]
[1762620722668,0.04705633,156.65,156.61,3.08077275]
[1762620722859,3.21705633,156.65,156.61,3.08077275]
[1762620724067,3.21705633,156.65,156.61,8.82937275]
[1762620725566,3.21705633,156.65,156.61,0.04077275]
[1762620725778,6.9708219,156.65,156.61,0.04077275]
[1762620726070,3.17,156.64,156.61,0.04077275]
[1762620726472,5.57238471,156.63,156.61,0.04077275]
[1762620727866,3.17,156.62,156.61,0.04077275]
[1762620728073,7.82992028,156.62,156.55,3.04]
[1762620728365,2.40238471,156.61,156.55,3.04]
[1762620728572,5.57238471,156.61,156.57,8.7901]
[1762620728770,5.57238471,156.59,156.54,3.04]
[1762620728962,3.21667685,156.58,156.55,0.0410823]
[1762620729675,3.21667685,156.58,156.55,3.0810823]
[1762620729875,0.04667685,156.58,156.55,8.8317823]
[1762620731981,0.04667685,156.58,156.57,3.04]
[1762620735267,4.66053162,156.63,156.59,3.04]
[1762620735468,2.40238471,156.65,156.59,3.04]
[1762620735678,2.40238471,156.65,156.62,3.04]
[1762620736179,2.44994102,156.65,156.62,3.083529]
[1762620736583,5.61994102,156.65,156.62,0.043529]
[1762620736771,4.65972679,156.64,156.62,0.043529]
[1762620736976,5.61994102,156.65,156.62,0.043529]
[1762620737177,3.21755631,156.65,156.62,0.043529]
[1762620737683,5.61994102,156.65,156.62,0.043529]
[1762620738671,5.61994102,156.65,156.62,8.831729]
[1762620738877,2.44994102,156.65,156.63,3.04]
[1762620739273,0.04755631,156.65,156.63,3.04]
[1762620739682,2.40238471,156.7,156.64,8.7873]
[1762620739888,7.82866637,156.69,156.65,3.04]
[1762620740090,3.17,156.69,156.65,3.04]
[1762620740577,3.21258361,156.69,156.65,3.08719378]
[1762620740983,3.21258361,156.69,156.65,8.83439378]
[1762620741184,3.21258361,156.69,156.65,3.08719378]
[1762620741884,3.21258361,156.69,156.66,5.7467]
[1762620742685,0.04258361,156.69,156.66,3.04]
[1762620742987,0.04258361,156.69,156.68,3.04]
[1762620743378,0.04258361,156.69,156.67,5.7464]
[1762620743379,0.04258361,156.69,156.67,8.7864]
[1762620743980,0.04258361,156.69,156.68,3.04]
[1762620744183,2.40238471,156.75,156.7,3.04]
[1762620744380,4.65316053,156.74,156.7,3.04]
[1762620744579,5.57238471,156.79,156.7,3.04]
[1762620744784,4.6518226,156.78,156.72,8.7845]
[1762620744983,5.57238471,156.79,156.72,8.7845]
[1762620744984,5.57238471,156.79,156.72,3.04]
[1762620745185,0.04359023,156.77,156.74,3.08118837]
[1762620745792,3.17,156.76,156.74,0.04118837]
[1762620747387,8.9134,156.76,156.74,0.04118837]
[1762620747584,3.17,156.75,156.74,0.04118837]
[1762620747792,3.17,156.75,156.68,3.04]
[1762620748090,3.17,156.74,156.62,3.04]
[1762620748785,0.04252057,156.7,156.66,0.04685041]
[1762620748993,0.04252057,156.7,156.67,8.7864]
[1762620749192,0.04252057,156.7,156.68,3.04]
[1762620750490,0.04252057,156.7,156.67,3.04]
[1762620750688,3.21252057,156.7,156.66,0.04685041]
[1762620751694,8.76473345,156.7,156.66,0.04685041]
[1762620751892,3.13,156.69,156.66,0.04685041]
[1762620753995,3.13,156.69,156.66,3.12685041]
[1762620754190,3.13,156.69,156.66,0.04685041]
[1762620754596,8.72473345,156.7,156.66,3.12685041]
[1762620754795,0.04252057,156.7,156.66,3.12685041]
[1762620755291,0.04252057,156.7,156.66,8.87355041]
[1762620756696,0.04252057,156.7,156.66,0.04685041]
[1762620756697,3.17252057,156.7,156.66,0.04685041]
[1762620757700,3.13,156.67,156.66,0.04685041]
[1762620760809,5.7472,156.66,156.6,3.08]
[1762620761000,8.8772,156.66,156.6,3.08]
[1762620761400,3.13,156.65,156.53,3.08]
[1762620761804,0.04702471,156.61,156.57,0.04451338]
[1762620762101,0.04702471,156.61,156.57,3.12451338]
[1762620762299,3.17702471,156.61,156.57,8.87451338]
[1762620762601,3.17702471,156.61,156.57,0.04451338]
[1762620764011,8.7796,156.59,156.57,0.04451338]
[1762620764402,3.03,156.58,156.57,0.04451338]
[1762620768514,4.61970648,156.58,156.32,256.09633056]
[1762620768814,8.34927768,156.59,156.34,3.21]
[1762620768815,2.40381582,156.44,156.34,3.21]
[1762620769206,2.40381582,156.41,156.34,3.21]
[1762620769405,2.40381582,156.39,156.28,3.21]
[1762620769613,2.40381582,156.37,156.28,3.21]
[1762620769812,0.04216029,156.35,156.32,0.04389992]
[1762620770112,2.40381582,156.33,156.32,0.04389992]
[1762620770315,0.04216029,156.35,156.32,0.04389992]
[1762620771610,5.80076029,156.35,156.24,3.21]
[1762620771815,5.7586,156.35,156.24,3.21]
[1762620772224,5.58334708,156.33,156.24,3.21]
[1762620772714,0.04353682,156.3,156.2,3.21]
[1762620773016,0.04378271,156.27,156.21,8.9731]
[1762620773217,0.04378271,156.27,156.21,3.21]
[1762620773606,0.04378271,156.27,156.19,276.39189918]
[1762620773820,0.04378271,156.27,156.2,3.21]
[1762620774123,0.04378271,156.27,156.06,81.7]
[1762620774323,5.58334708,156.28,156.09,3.21]
[1762620774513,9.15500265,156.31,156.03,84.90038675]
[1762620774514,0.05,156.27,156.13,3.21]
[1762620774708,0.05,156.33,156.13,3.21]
[1762620774912,0.05,156.33,156.17,3.21]
[1762620775109,0.05,156.33,156.21,3.21]
[1762620775622,0.0425713,156.29,156.26,3.21]
[1762620776121,0.0425713,156.29,156.27,3.21]
[1762620776518,0.05,156.37,156.28,3.21]
[1762620777027,0.05,156.37,156.29,8.9705]
[1762620777516,0.04311923,156.35,156.31,3.25768159]
[1762620778219,0.04311923,156.35,156.31,9.01718159]
[1762620778525,0.04311923,156.35,156.32,3.21]
[1762620778714,0.04311923,156.35,156.31,5.80718159]
[1762620778715,0.09311923,156.35,156.31,0.04768159]
[1762620779426,0.04311923,156.35,156.31,3.25768159]
[1762620779921,0.05,156.34,156.31,0.04768159]
[1762620780611,0.05,156.34,156.23,3.21]
[1762620781517,0.0464095,156.3,156.27,0.04611814]
[1762620781720,0.0464095,156.3,156.27,3.06611814]
[1762620782028,0.0464095,156.3,156.27,0.04611814]
[1762620783116,0.1064095,156.3,156.27,0.04611814]
[1762620783524,5.15310714,156.29,156.27,0.04611814]
[1762620783724,0.1064095,156.3,156.27,0.04611814]
[1762620783925,5.15321843,156.29,156.27,0.04611814]
[1762620784126,0.1064095,156.3,156.27,0.04611814]
[1762620785023,0.0464095,156.3,156.27,3.06611814]
[1762620785219,11.58880894,156.38,156.27,3.06611814]
[1762620785416,5.14521601,156.37,156.27,3.02]
[1762620785627,5.14521601,156.36,156.27,3.02]
[1762620785829,0.06,156.38,156.29,3.02]
[1762620786128,0.06,156.38,156.25,3.02]
[1762620786129,0.1,156.36,156.25,3.02]
[1762620786426,0.04851268,156.35,156.32,0.0449595]
[1762620786627,0.04057705,156.35,156.32,3.06427666]
[1762620786829,0.04057705,156.35,156.32,0.04427666]
[1762620787626,0.04057705,156.35,156.32,3.06427666]
[1762620787927,0.04057705,156.35,156.32,0.04427666]
[1762620788128,0.1,156.34,156.32,0.04427666]
[1762620788329,5.24323124,156.33,156.25,3.02]
[1762620788530,0.1,156.33,156.25,3.02]
[1762620789027,0.1,156.33,156.25,8.7816]
[1762620789419,0.04400091,156.31,156.27,0.04841851]
[1762620789628,0.04400091,156.31,156.27,3.06841851]
[1762620792128,0.1,156.3,156.27,0.04841851]
[1762620792526,5.15170819,156.29,156.27,0.04841851]
[1762620792721,0.1,156.3,156.27,0.04841851]
[1762620792930,5.15170921,156.29,156.27,0.04841851]
[1762620793231,5.25126532,156.28,156.27,0.04841851]
[1762620796826,5.25126532,156.28,156.21,5.7632]
[1762620797025,5.15126532,156.27,156.21,5.7632]
[1762620797223,0.1,156.28,156.21,5.7632]
[1762620797224,5.25126532,156.26,156.21,3.02]
[1762620797428,5.25126532,156.25,156.21,3.02]
[1762620797625,5.26292228,156.24,156.13,3.02]
[1762620797828,0.04667088,156.2,156.17,8.7847]
[1762620798230,0.04667088,156.2,156.17,3.02]
[1762620798431,0.04667088,156.2,156.14,3.02]
[1762620798633,0.14726623,156.19,156.11,3.02]
[1762620798835,5.1656592,156.18,156.14,3.02]
[1762620799034,0.14726623,156.19,156.14,3.02]
[1762620799234,0.14726623,156.19,156.04,28.35689374]
[1762620799235,0.1,156.17,156.04,3.02]
[1762620799534,5.16558268,156.16,156.05,3.02]
[1762620799737,0.04069401,156.12,156.05,3.02]
[1762620799933,0.04069401,156.12,156.11,3.02]
[1762620800136,0.04069401,156.12,156.11,4.3]
[1762620800335,5.16362858,156.19,156.12,3.02]
[1762620800639,5.94546186,156.23,156.13,3.02]
[1762620800833,5.16997822,156.22,156.13,3.02]
[1762620801033,5.16997822,156.21,156.13,3.02]
[1762620801230,0.1,156.18,156.15,0.04701039]
[1762620801430,0.14743546,156.18,156.15,0.04171893]
[1762620801939,0.1,156.17,156.15,0.04171893]
[1762620802237,0.14743546,156.18,156.15,0.04171893]
[1762620803140,0.1,156.17,156.15,0.04171893]
[1762620804136,0.04743546,156.18,156.15,3.06171893]
[1762620804544,5.18740564,156.17,156.15,3.06171893]
[1762620804728,5.18740564,156.16,156.15,3.06171893]
[1762620804935,0.04743546,156.18,156.15,3.06171893]
[1762620805235,22.1,156.25,156.15,3.06171893]
[1762620805236,5.83690754,156.21,156.19,3.02]
[1762620805647,5.83690754,156.24,156.21,3.02]
[1762620805935,5.83690754,156.26,156.21,3.02]
[1762620806130,0.04851816,156.25,156.23,8.7823]
[1762620806334,5.83690754,156.25,156.23,8.7823]
[1762620806534,5.87742753,156.26,156.23,3.02]
[1762620807541,5.83690754,156.25,156.23,3.02]
[1762620808135,5.87742753,156.26,156.23,3.02]
[1762620808333,5.83690754,156.25,156.23,3.02]
[1762620808938,5.83690754,156.24,156.23,3.02]
[1762620809345,7.78254338,156.25,156.23,3.02]
[1762620809545,5.88305328,156.24,156.23,3.02]
[1762620810048,0.04057327,156.26,156.23,3.02]
[1762620810546,0.04051999,156.26,156.25,3.02]
[1762620810842,0.00051999,156.26,156.25,3.02]
[1762620811034,7.78254338,156.29,156.27,3.02]
[1762620811545,11.67381508,156.29,156.22,2.94]
[1762620811748,21.42428677,156.33,156.22,2.94]
[1762620811749,7.87397558,156.26,156.22,2.94]
[1762620811932,7.87397558,156.25,156.22,2.98192748]
[1762620812136,7.87397558,156.25,156.22,8.74472748]
[1762620812333,7.87397558,156.24,156.23,2.94]
[1762620812536,11.71698779,156.26,156.23,2.94]
[1762620812537,0.04317271,156.26,156.23,2.94]
[1762620813248,0.04317271,156.26,156.25,2.94]
[1762620815142,0.04317271,156.26,156.23,2.94]
[1762620816144,0.04317271,156.26,156.22,0.04192748]
[1762620816145,0.04317271,156.26,156.25,2.94]
[1762620816548,13.65463816,156.34,156.25,2.94]
[1762620816749,4.51555764,156.33,156.25,2.94]
[1762620816942,4.51555764,156.32,156.29,2.94]
[1762620817142,0.13,156.36,156.29,2.94]
[1762620817443,0.04832829,156.34,156.31,0.04505764]
[1762620817644,4.51524113,156.33,156.31,0.04505764]
[1762620817847,4.51524113,156.32,156.31,0.04505764]
[1762620818447,0.04832829,156.34,156.31,0.04505764]
[1762620818752,4.51470265,156.33,156.31,0.04505764]
[1762620818952,0.04832829,156.34,156.31,0.04505764]
[1762620819250,0.04832829,156.34,156.31,2.98505764]
[1762620820141,0.04832829,156.34,156.31,0.04505764]
[1762620820650,0.21832829,156.34,156.31,0.04505764]
[1762620822251,0.04832829,156.34,156.31,2.98505764]
[1762620823147,0.04832829,156.34,156.33,2.94]
[1762620824947,0.04832829,156.34,156.31,3.22505764]
[1762620826347,0.04832829,156.34,156.31,8.98465764]
[1762620827054,0.04832829,156.34,156.32,3.18]
[1762620827443,0.04832829,156.34,156.32,8.9393]
[1762620827648,0.04832829,156.34,156.33,3.18]
[1762620828056,5.7559,156.42,156.37,3.18]
[1762620828249,4.50844839,156.45,156.37,3.18]
[1762620828656,5.7555,156.43,156.37,8.9374]
[1762620828851,0.23,156.44,156.37,3.18]
[1762620829057,0.23,156.41,156.3,3.18]
[1762620829255,0.23,156.41,156.31,3.18]
[1762620829652,5.758,156.36,156.31,8.9396]
[1762620829853,5.758,156.36,156.32,3.18]
[1762620830052,5.80187043,156.36,156.32,3.228144]
[1762620830356,5.7583,156.35,156.32,0.048144]
[1762620830656,0.27387043,156.36,156.32,0.048144]
[1762620831267,0.27387043,156.36,156.32,3.228144]
[1762620831454,0.04387043,156.36,156.32,3.228144]
[1762620831759,0.04387043,156.36,156.33,3.18]
[1762620834049,5.80187043,156.36,156.33,3.18]
[1762620835758,0.04387043,156.36,156.33,3.18]
[1762620836750,0.27,156.45,156.35,3.18]
[1762620836954,0.27,156.48,156.35,3.18]
[1762620837253,5.7543,156.46,156.39,3.18]
[1762620837455,0.27,156.48,156.39,3.18]
[1762620837853,0.04849864,156.45,156.42,0.04077734]
[1762620839159,0.27,156.43,156.42,0.04077734]
[1762620839459,5.7551,156.44,156.42,0.04077734]
[1762620839960,0.04849864,156.45,156.42,0.04077734]
[1762620840258,0.04849864,156.45,156.42,3.22077734]
[1762620840863,5.80319864,156.45,156.42,3.22077734]
[1762620841665,0.04849864,156.45,156.42,3.22077734]
[1762620843464,0.04849864,156.45,156.42,0.04077734]
[1762620843666,6.0351,156.44,156.42,0.04077734]
[1762620845062,0.28,156.43,156.42,0.04077734]
[1762620846465,0.28,156.43,156.34,3.09]
[1762620847466,0.0455006,156.4,156.37,0.04066798]